bitfinex/quotes_BTCUSD_20250414
["timestamp","ask_amount","ask_price","bid_price","bid_amount"]
[1744624819082,0.001,84422.0,84421.0,0.01107795]
[1744624819439,0.015844,84424.0,84421.0,0.01107795]
[1744624819643,0.004,84424.0,84423.0,0.189521]
[1744624819846,0.004,84424.0,84423.0,0.19692218]
[1744624820046,0.004,84424.0,84423.0,0.20800013]
[1744624820700,0.00013904,84426.0,84424.0,0.189517]
[1744624821538,0.00013904,84426.0,84425.0,0.01107795]
[1744624822127,0.00413904,84426.0,84425.0,0.01107795]
[1744624822526,0.00613904,84426.0,84425.0,0.01107795]
[1744624822828,0.01013904,84426.0,84425.0,0.01107795]
[1744624823863,0.00813904,84426.0,84425.0,0.01107795]
[1744624824081,0.01013904,84426.0,84425.0,0.01107795]
[1744624825029,0.01013904,84426.0,84424.0,0.189517]
[1744624825502,0.01013904,84426.0,84423.0,0.201366]
[1744624825838,0.01013904,84426.0,84424.0,0.189517]
[1744624826028,0.01013904,84426.0,84424.0,0.20058338]
[1744624826809,0.00813904,84426.0,84424.0,0.20058338]
[1744624826937,0.00013904,84426.0,84424.0,0.20058338]
[1744624827138,0.00613904,84426.0,84424.0,0.189517]
[1744624827404,0.00613904,84426.0,84425.0,0.0486]
[1744624827607,0.00613904,84426.0,84425.0,0.05096867]
[1744624827992,0.00613904,84426.0,84425.0,0.06782805]
[1744624828187,0.00413904,84426.0,84425.0,0.06782805]
[1744624828373,0.00013904,84426.0,84425.0,0.07889226]
[1744624828569,0.00213904,84426.0,84425.0,0.07889226]
[1744624828767,0.00313904,84426.0,84425.0,0.07889226]
[1744624828970,0.00313904,84426.0,84425.0,0.07652359]
[1744624829159,0.00313904,84426.0,84425.0,0.07889221]
[1744624829763,0.00313904,84426.0,84425.0,0.02861102]
[1744624830355,0.00113904,84426.0,84425.0,0.02861102]
[1744624830759,0.00113904,84426.0,84425.0,0.0262424]
[1744624830955,0.00113904,84426.0,84425.0,0.02861102]
[1744624832057,0.00113904,84426.0,84425.0,0.19495256]
[1744624832501,4e-08,84426.0,84425.0,0.19495256]
[1744624832758,0.0008446,84435.0,84431.0,0.011843]
[1744624832959,0.00130757,84434.0,84432.0,0.36733479]
[1744624833165,0.00130757,84434.0,84433.0,0.05843234]
[1744624833408,0.00130757,84434.0,84433.0,0.18626857]
[1744624835031,0.00130757,84434.0,84433.0,0.18926857]
[1744624836419,0.00130757,84434.0,84433.0,0.15963805]
[1744624839272,0.00130757,84434.0,84433.0,0.16200642]
[1744624839895,0.00103579,84441.0,84433.0,0.16200642]
[1744624839896,0.00103579,84441.0,84440.0,0.19364339]
[1744624840077,0.00103579,84441.0,84440.0,0.32383758]
[1744624840490,0.00103579,84441.0,84440.0,0.20299604]
[1744624841171,0.00103579,84441.0,84440.0,0.20399604]
[1744624841657,0.00103579,84441.0,84440.0,0.20499604]
[1744624842470,0.19051679,84441.0,84440.0,0.01551304]
[1744624842689,0.00103579,84441.0,84440.0,0.01551304]
[1744624842895,0.00103579,84441.0,84440.0,0.00616039]
[1744624843087,0.00103579,84441.0,84440.0,0.01551304]
[1744624843311,0.00103579,84441.0,84440.0,0.01451304]
[1744624843569,0.00103579,84441.0,84440.0,0.00416039]
[1744624843730,0.09713579,84441.0,84440.0,0.00416039]
[1744624843928,0.43713579,84441.0,84440.0,0.00416039]
[1744624844229,0.43913579,84441.0,84440.0,0.00416039]
[1744624845499,0.43613579,84441.0,84440.0,0.00416039]
[1744624845721,0.44013579,84441.0,84440.0,0.00416039]
[1744624846427,0.011843,84432.0,84429.0,0.011844]
[1744624846550,0.011843,84431.0,84428.0,0.011844]
[1744624846751,0.011843,84431.0,84429.0,0.00937972]
[1744624847172,0.201348,84431.0,84429.0,0.00937972]
[1744624847374,0.201348,84431.0,84423.0,0.03034688]
[1744624847375,0.011844,84428.0,84424.0,0.201362]
[1744624847572,0.011844,84428.0,84425.0,0.00937391]
[1744624848169,0.189514,84427.0,84425.0,0.00937391]
[1744624848560,0.189514,84427.0,84414.0,0.244886]
[1744624848561,0.011845,84420.0,84414.0,0.13924]
[1744624848763,0.189539,84416.0,84415.0,0.00938937]
[1744624848874,0.189539,84416.0,84412.0,0.011846]
[1744624848875,0.201383,84416.0,84412.0,0.011846]
[1744624849078,0.189546,84412.0,84410.0,0.01]
[1744624850127,0.34,84411.0,84410.0,0.01]
[1744624851063,0.35191169,84411.0,84410.0,0.01]
[1744624851241,0.35391169,84411.0,84410.0,0.01]
[1744624852513,0.35591169,84411.0,84410.0,0.01]
[1744624856169,0.53959408,84411.0,84410.0,0.01]
[1744624856745,0.40421169,84411.0,84410.0,0.01]
[1744624856921,0.40221169,84411.0,84410.0,0.01]
[1744624857459,0.40421169,84411.0,84410.0,0.01]
[1744624857996,0.40221169,84411.0,84410.0,0.01]
[1744624858196,0.40521169,84411.0,84410.0,0.01]
[1744624858673,0.40321169,84411.0,84410.0,0.01]
[1744624858883,0.005,84411.0,84410.0,0.199551]
[1744624859184,0.005,84411.0,84410.0,0.20917914]
[1744624859791,0.003,84411.0,84410.0,0.20917914]
[1744624860150,0.004,84411.0,84410.0,0.20917914]
[1744624861420,0.001,84411.0,84410.0,0.20917914]
[1744624861595,0.002,84411.0,84410.0,0.20917914]
[1744624862643,0.002,84411.0,84410.0,0.3784897]
[1744624862784,0.002,84411.0,84410.0,0.37612068]
[1744624862988,0.002,84411.0,84410.0,0.42172068]
[1744624863653,0.002,84411.0,84410.0,0.42272068]
[1744624864229,9.87e-05,84427.0,84426.0,0.189515]
[1744624864589,9.87e-05,84427.0,84426.0,0.24749383]
[1744624864805,9.87e-05,84427.0,84426.0,0.24512505]
[1744624865519,0.0020987,84427.0,84426.0,0.24712505]
[1744624865727,0.0020987,84427.0,84426.0,0.20102505]
[1744624866143,9.87e-05,84427.0,84426.0,0.20102505]
[1744624866979,9.87e-05,84427.0,84426.0,0.20202505]
[1744624871589,0.1896107,84427.0,84426.0,0.01251005]
[1744624871870,0.1896107,84427.0,84426.0,0.003]
[1744624872706,0.1896107,84427.0,84426.0,0.002]
[1744624873987,0.1896107,84427.0,84420.0,0.01850219]
[1744624873988,0.189526,84421.0,84420.0,0.01850219]
[1744624874879,0.201371,84421.0,84417.0,0.011845]
[1744624875110,0.201371,84421.0,84417.0,0.201379]
[1744624875316,0.201371,84421.0,84420.0,0.0195036]
[1744624875496,0.201371,84421.0,84420.0,0.0205036]
[1744624875898,0.201371,84421.0,84420.0,0.0195036]
[1744624877190,0.201371,84421.0,84420.0,0.002]
[1744624877724,0.201371,84421.0,84420.0,0.001]
[1744624877926,0.011845,84421.0,84420.0,0.001]
[1744624878628,0.011845,84421.0,84420.0,0.002]
[1744624880777,0.201367,84423.0,84420.0,0.002]
[1744624881809,0.201367,84423.0,84420.0,0.001]
[1744624882221,0.201367,84423.0,84420.0,0.002]
[1744624882830,0.201367,84423.0,84420.0,0.001]
[1744624882968,0.201367,84423.0,84420.0,0.002]
[1744624885354,0.011845,84423.0,84420.0,0.013845]
[1744624885850,0.011845,84423.0,84420.0,0.203372]
[1744624886197,0.011845,84423.0,84420.0,0.013845]
[1744624888139,0.011845,84423.0,84421.0,0.0095357]
[1744624888542,0.011845,84423.0,84420.0,0.013845]
[1744624888838,0.011845,84423.0,84422.0,0.0095357]
[1744624889012,0.011845,84423.0,84420.0,0.013845]
[1744624889213,0.011845,84423.0,84420.0,0.001]
[1744624889418,0.201367,84423.0,84420.0,0.001]
[1744624890191,0.201367,84423.0,84420.0,0.002]
[1744624890462,0.181367,84423.0,84420.0,0.002]
[1744624890612,0.189525,84422.0,84420.0,0.002]
[1744624891679,0.189525,84422.0,84420.0,0.001]
[1744624892122,0.189525,84422.0,84420.0,0.002]
[1744624892330,0.189525,84422.0,84420.0,0.001]
[1744624892548,0.189525,84422.0,84420.0,0.002]
[1744624895425,0.011845,84423.0,84420.0,0.002]
[1744624896209,0.351843,84435.0,84425.0,0.189516]
[1744624896387,0.011843,84433.0,84425.0,0.189516]
[1744624896566,0.011844,84429.0,84425.0,0.189516]
[1744624896756,0.201365,84424.0,84420.0,0.002]
[1744624896956,0.011845,84423.0,84420.0,0.002]
[1744624897157,0.011845,84423.0,84420.0,0.001]
[1744624897394,0.011844,84426.0,84422.0,0.011845]
[1744624897911,0.011844,84426.0,84422.0,0.201367]
[1744624898274,9.87e-05,84427.0,84426.0,0.189515]
[1744624898698,9.87e-05,84427.0,84426.0,0.35625654]
[1744624899594,9.87e-05,84427.0,84426.0,0.40405654]
[1744624900672,9.87e-05,84427.0,84426.0,0.40605654]
[1744624901025,9.87e-05,84427.0,84426.0,0.41795081]
[1744624901159,9.87e-05,84427.0,84426.0,0.42095081]
[1744624902927,9.87e-05,84427.0,84426.0,0.43029814]
[1744624904090,9.87e-05,84427.0,84426.0,0.41840387]
[1744624905185,9.87e-05,84427.0,84426.0,0.32470387]
[1744624905380,9.87e-05,84427.0,84426.0,0.01434733]
[1744624906146,9.87e-05,84427.0,84426.0,0.13518887]
[1744624906370,9.87e-05,84427.0,84426.0,0.18515788]
[1744624906549,9.87e-05,84427.0,84426.0,0.18078887]
[1744624906921,9.87e-05,84427.0,84426.0,0.18178887]
[1744624907305,9.87e-05,84427.0,84426.0,0.18078887]
[1744624907658,9.87e-05,84427.0,84426.0,0.18278887]
[1744624908418,9.87e-05,84427.0,84426.0,0.13518887]
[1744624909538,9.87e-05,84427.0,84426.0,0.01434733]
[1744624914985,9.87e-05,84427.0,84426.0,0.1375576]
[1744624915277,9.87e-05,84427.0,84426.0,0.13518887]
[1744624919706,9.87e-05,84427.0,84426.0,0.18398887]
[1744624920692,9.87e-05,84427.0,84426.0,0.18635735]
[1744624922315,9.87e-05,84427.0,84426.0,0.18398887]
[1744624924739,9.87e-05,84427.0,84426.0,0.13518887]
[1744624931604,9.87e-05,84427.0,84426.0,0.14258803]
[1744624932678,9.87e-05,84427.0,84426.0,0.15367268]
[1744624940279,9.87e-05,84427.0,84426.0,0.03283114]
[1744624946179,9.87e-05,84427.0,84426.0,0.03342114]
[1744624955623,9.87e-05,84427.0,84426.0,0.15663139]
[1744624955834,9.87e-05,84427.0,84426.0,0.25083139]
[1744624955982,9.87e-05,84427.0,84426.0,0.24846268]
[1744624957389,9.87e-05,84427.0,84426.0,0.19986268]
[1744624957801,9.87e-05,84427.0,84426.0,0.15426268]
[1744624966529,9.87e-05,84427.0,84426.0,0.03342114]
[1744624970118,9.87e-05,84427.0,84426.0,0.03287862]
[1744624970627,0.0001487,84427.0,84426.0,0.03287862]
[1744624972436,0.0001487,84427.0,84426.0,0.02547946]
[1744624972763,0.0001487,84427.0,84426.0,0.01439481]
[1744624974330,0.0001487,84427.0,84426.0,0.03288747]
[1744624977964,0.591019,84443.0,84440.0,0.011842]
[1744624978167,0.591019,84443.0,84441.0,0.00739953]
[1744624978379,0.3897,84443.0,84441.0,0.00739953]
[1744624978527,0.3897,84443.0,84442.0,0.01686658]
[1744624979006,0.0507,84443.0,84442.0,0.02795971]
[1744624979212,0.3907,84443.0,84442.0,0.02795971]
[1744624979681,0.3907,84443.0,84442.0,0.01849266]
[1744624980289,0.3917,84443.0,84442.0,0.02796359]
[1744624980492,0.3897,84443.0,84442.0,0.02796359]
[1744624980722,0.3907,84443.0,84442.0,0.02796359]
[1744624980932,0.3917,84443.0,84442.0,0.02796359]
[1744624981266,0.3917,84443.0,84442.0,0.01849266]
[1744624982418,0.39175,84443.0,84442.0,0.02796359]
[1744624983570,0.34205,84443.0,84442.0,0.02796359]
[1744624984184,0.00205,84443.0,84442.0,0.02796359]
[1744624988932,0.531526,84443.0,84442.0,0.02855359]
[1744624989134,0.531526,84443.0,84442.0,0.01908266]
[1744624989588,0.531526,84443.0,84442.0,0.02853998]
[1744624990572,0.531526,84443.0,84442.0,0.01908266]
[1744624991806,0.531526,84443.0,84442.0,0.01168313]
[1744624994683,0.623226,84443.0,84442.0,0.01168313]
[1744624995062,0.623226,84443.0,84442.0,0.00059]
[1744624995671,0.75860839,84443.0,84442.0,0.00059]
[1744624996635,0.75660839,84443.0,84442.0,0.00059]
[1744624997397,0.76060839,84443.0,84442.0,0.00059]
[1744625000072,0.79636809,84443.0,84442.0,0.00059]
[1744625001161,0.79236809,84443.0,84442.0,0.00059]
[1744625001295,0.75660839,84443.0,84442.0,0.00059]
[1744625001515,0.76360839,84443.0,84442.0,0.00059]
[1744625002080,0.88433687,84443.0,84442.0,0.00059]
[1744625002667,0.92009657,84443.0,84442.0,0.00059]
[1744625005982,0.79936809,84443.0,84442.0,0.00059]
[1744625006584,0.529548,84411.0,84410.0,0.01]
[1744625006766,0.529548,84411.0,84410.0,0.01046337]
[1744625007758,0.5411523,84411.0,84410.0,0.01046337]
[1744625009043,0.5411523,84411.0,84410.0,0.01346337]
[1744625015461,0.5411523,84411.0,84410.0,0.01046337]
[1744625015626,0.5411523,84411.0,84410.0,0.01246337]
[1744625018633,0.3516043,84411.0,84410.0,0.06216337]
[1744625018874,0.3516043,84411.0,84410.0,0.07056453]
[1744625019076,0.201387,84415.0,84410.0,0.27195953]
[1744625019480,0.201389,84414.0,84411.0,0.011846]
[1744625019707,0.201389,84414.0,84411.0,0.02025878]
[1744625020085,0.34,84423.0,84411.0,0.02025878]
[1744625020086,0.011844,84428.0,84421.0,0.011845]
[1744625020457,0.189503,84432.0,84421.0,0.011845]
[1744625020458,0.189509,84429.0,84424.0,0.011844]
[1744625020656,0.189512,84427.0,84423.0,0.0465]
[1744625020836,0.011844,84426.0,84423.0,0.0465]
[1744625021158,0.189517,84425.0,84423.0,0.0465]
[1744625021479,0.011844,84424.0,84419.0,0.011845]
[1744625022130,0.011844,84424.0,84419.0,0.201374]
[1744625022339,0.011844,84424.0,84423.0,0.001]
[1744625022932,0.011844,84424.0,84423.0,0.00937212]
[1744625023135,0.011844,84424.0,84423.0,0.001]
[1744625023376,0.02387217,84426.0,84423.0,0.009376]
[1744625023588,0.34,84432.0,84424.0,0.201361]
[1744625023791,0.189516,84426.0,84424.0,0.008376]
[1744625024143,0.01006697,84424.0,84420.0,0.201373]
[1744625024349,0.201358,84427.0,84422.0,0.011845]
[1744625024550,0.21310987,84427.0,84423.0,0.011845]
[1744625024872,0.21310987,84427.0,84424.0,0.00837987]
[1744625024873,0.011844,84426.0,84424.0,0.00837987]
[1744625025269,0.20136,84426.0,84424.0,0.00837987]
[1744625025672,0.189519,84424.0,84423.0,0.001]
[1744625025820,0.201363,84424.0,84418.0,0.011845]
[1744625026447,0.011844,84425.0,84422.0,0.011845]
[1744625026873,0.011844,84425.0,84423.0,0.0477]
[1744625027357,0.01166479,84425.0,84423.0,0.0477]
[1744625028214,0.01266479,84425.0,84423.0,0.0477]
[1744625028513,0.001,84425.0,84423.0,0.23722]
[1744625028747,0.541358,84427.0,84423.0,0.060545]
[1744625029125,0.001,84425.0,84423.0,0.060545]
[1744625029707,0.541358,84427.0,84423.0,0.0487]
[1744625029915,0.011844,84426.0,84423.0,0.0487]
[1744625030903,0.20136,84426.0,84423.0,0.0487]
[1744625031840,0.20236,84426.0,84423.0,0.0487]
[1744625032265,0.20236,84426.0,84423.0,0.0477]
[1744625032437,0.20236,84426.0,84423.0,0.0487]
[1744625036985,0.189518,84425.0,84423.0,0.0487]
[1744625037391,0.189518,84425.0,84423.0,0.001]
[1744625037803,0.001,84426.0,84423.0,0.001]
[1744625038009,0.541361,84427.0,84423.0,0.011845]
[1744625038188,0.001,84425.0,84424.0,0.00835522]
[1744625038604,0.541361,84427.0,84424.0,0.00835522]
[1744625038802,0.34,84427.0,84424.0,0.00835522]
[1744625038986,0.001,84465.0,84424.0,0.00835522]
[1744625038987,5e-05,84443.0,84437.0,0.011843]
[1744625039187,5e-05,84443.0,84441.0,0.18948]
[1744625039639,5e-05,84443.0,84442.0,0.0471]
[1744625039817,5e-05,84443.0,84442.0,0.05540296]
[1744625040199,0.00013773,84443.0,84442.0,0.05540296]
[1744625041417,0.00013773,84443.0,84442.0,0.0471]
[1744625041598,0.00013773,84443.0,84442.0,0.05538748]
[1744625041998,0.00113773,84443.0,84442.0,0.05538748]
[1744625042785,0.00113773,84443.0,84442.0,0.22729729]
[1744625042989,0.00113773,84443.0,84442.0,0.22729717]
[1744625043533,0.00113773,84443.0,84442.0,0.23834709]
[1744625043733,0.00013773,84443.0,84442.0,0.23834709]
[1744625044332,0.00013773,84443.0,84442.0,0.24134709]
[1744625044529,0.00013773,84443.0,84442.0,0.23897894]
[1744625045361,0.00013773,84443.0,84442.0,0.2463769]
[1744625047917,0.00013773,84443.0,84442.0,0.23897894]
[1744625055179,0.00013773,84443.0,84442.0,0.0223374]
[1744625056061,0.00013773,84443.0,84442.0,0.01128748]
[1744625057638,0.52961373,84443.0,84442.0,0.01128748]
[1744625057927,0.52961373,84443.0,84442.0,0.003]
[1744625058700,0.201338,84435.0,84432.0,0.011843]
[1744625059018,0.201338,84435.0,84431.0,0.201345]
[1744625059019,0.011843,84434.0,84433.0,0.00819119]
[1744625059402,0.011844,84430.0,84426.0,0.011844]
[1744625059805,0.011844,84430.0,84427.0,0.00817182]
[1744625060035,0.201351,84430.0,84427.0,0.00817182]
[1744625060442,0.189509,84429.0,84425.0,0.201359]
[1744625060779,0.189509,84429.0,84426.0,0.00816795]
[1744625060979,0.189509,84429.0,84426.0,0.02001195]
[1744625061181,0.011844,84430.0,84427.0,0.006]
[1744625061353,0.011844,84430.0,84428.0,0.00817182]
[1744625061905,0.529487,84439.0,84433.0,0.011843]
[1744625062313,0.34,84439.0,84434.0,0.011843]
[1744625062469,0.34,84439.0,84435.0,0.011843]
[1744625062665,0.351842,84439.0,84435.0,0.201336]
[1744625063047,0.351842,84439.0,84436.0,0.00820668]
[1744625063249,0.351842,84439.0,84436.0,0.02004968]
[1744625063434,0.352842,84439.0,84436.0,0.02004968]
[1744625063864,0.542329,84439.0,84436.0,0.00820668]
[1744625064065,0.541329,84439.0,84436.0,0.00820668]
[1744625064266,0.18949,84438.0,84436.0,0.00820668]
[1744625064470,0.201333,84438.0,84434.0,0.011843]
[1744625064727,0.201333,84438.0,84435.0,0.0082028]
[1744625064959,0.189492,84437.0,84435.0,0.0082028]
[1744625065175,0.011843,84436.0,84433.0,0.011843]
[1744625065349,0.011843,84436.0,84434.0,0.00819506]
[1744625067431,0.012843,84436.0,84434.0,0.00819506]
[1744625071933,0.001,84436.0,84434.0,0.19769006]
[1744625072402,0.001,84436.0,84435.0,0.01105948]
[1744625072753,0.001,84436.0,84435.0,0.01928483]
[1744625073013,0.01197973,84443.0,84435.0,0.01928483]
[1744625073014,0.20145773,84443.0,84438.0,0.20133]
[1744625073386,0.20145773,84443.0,84439.0,0.00824859]
[1744625073590,0.20145773,84443.0,84439.0,0.01105948]
[1744625073790,0.20145773,84443.0,84440.0,0.00824859]
[1744625074945,0.20245773,84443.0,84440.0,0.00824859]
[1744625076090,0.20145773,84443.0,84440.0,0.00824859]
[1744625076313,0.20245773,84443.0,84440.0,0.00824859]
[1744625077830,0.20245773,84443.0,84438.0,0.20133]
[1744625078128,0.20245773,84443.0,84439.0,0.011842]
[1744625078325,0.20245773,84443.0,84440.0,0.00824293]
[1744625078525,0.01297973,84443.0,84440.0,0.00824293]
[1744625079082,0.01297973,84443.0,84440.0,0.01931044]
[1744625079283,0.01197973,84443.0,84440.0,0.01931044]
[1744625079582,0.01297973,84443.0,84440.0,0.03115244]
[1744625079997,0.01197973,84443.0,84440.0,0.03115244]
[1744625080431,0.01297973,84443.0,84440.0,0.03115244]
[1744625082676,0.20245773,84443.0,84440.0,0.01931044]
[1744625083993,0.18948,84442.0,84440.0,0.01931044]
[1744625085635,0.19048,84442.0,84440.0,0.01931044]
[1744625085841,0.19048,84442.0,84441.0,0.01106751]
[1744625086138,0.19048,84442.0,84441.0,0.01931284]
[1744625086549,0.19048,84442.0,84441.0,0.00824533]
[1744625087053,0.18948,84442.0,84441.0,0.00824533]
[1744625087552,0.19048,84442.0,84441.0,0.01931284]
[1744625088919,0.001,84442.0,84441.0,0.01931284]
[1744625089862,0.00013773,84443.0,84441.0,0.01931284]
[1744625090071,0.001,84442.0,84441.0,0.01931284]
[1744625090278,0.001,84442.0,84441.0,0.02031284]
[1744625091779,0.00013773,84443.0,84441.0,0.02031284]
[1744625092075,0.00113773,84443.0,84441.0,0.02031284]
[1744625092382,0.00113773,84443.0,84442.0,0.01106751]
[1744625092802,0.00113773,84443.0,84442.0,0.01931284]
[1744625093182,0.00013773,84443.0,84442.0,0.01931284]
[1744625093382,0.00113773,84443.0,84442.0,0.01931284]
[1744625093588,0.00113773,84443.0,84442.0,0.00824533]
[1744625093787,0.00113773,84443.0,84441.0,0.001]
[1744625093992,0.00113773,84443.0,84442.0,0.00824146]
[1744625094195,0.00113773,84443.0,84442.0,0.00924146]
[1744625094799,0.00013773,84443.0,84442.0,0.00924146]
[1744625094973,0.00113773,84443.0,84442.0,0.00924146]
[1744625095484,0.00013773,84443.0,84442.0,0.00924146]
[1744625095904,0.00113773,84443.0,84442.0,0.00924146]
[1744625101667,0.00013773,84443.0,84442.0,0.00824146]
[1744625101809,0.00013773,84443.0,84442.0,0.01124146]
[1744625104070,0.00013773,84443.0,84442.0,0.02232968]
[1744625104692,0.00013773,84443.0,84442.0,0.02972826]
[1744625104898,0.18961373,84443.0,84442.0,0.02972826]
[1744625105101,0.36141518,84443.0,84442.0,0.02972826]
[1744625105312,0.529508,84429.0,84428.0,0.0184868]
[1744625105513,2.37579039,84429.0,84428.0,0.0184868]
[1744625105826,0.529548,84411.0,84410.0,0.01]
[1744625105987,1.42757669,84411.0,84410.0,0.01]
[1744625106190,1.42757669,84411.0,84410.0,0.006]
[1744625106594,1.31539039,84411.0,84410.0,0.006]
[1744625106757,1.31539039,84411.0,84393.0,0.000422]
[1744625106758,0.189586,84394.0,84393.0,0.000422]
[1744625106959,0.68009571,84394.0,84393.0,0.00884599]
[1744625107159,0.68009571,84394.0,84393.0,0.000422]
[1744625107439,0.68009571,84394.0,84393.0,0.00088537]
[1744625108223,0.80093725,84394.0,84393.0,0.00088537]
[1744625108621,0.80193725,84394.0,84393.0,0.00088537]
[1744625108973,0.81098964,84394.0,84393.0,0.00088537]
[1744625109200,0.66313725,84394.0,84393.0,0.00088537]
[1744625109392,0.49150971,84394.0,84393.0,0.00088537]
[1744625109584,0.49146157,84394.0,84393.0,0.00928224]
[1744625110914,0.001,84394.0,84393.0,0.00088537]
[1744625111263,0.001,84394.0,84393.0,0.00919701]
[1744625111445,0.001,84394.0,84393.0,0.00088537]
[1744625111643,0.001,84394.0,84393.0,0.00927449]
[1744625111888,0.001,84394.0,84393.0,0.00088537]
[1744625112116,0.001,84394.0,84393.0,0.00932487]
[1744625112234,0.46184154,84394.0,84393.0,0.00088537]
[1744625112819,0.47346871,84394.0,84393.0,0.00088537]
[1744625114005,0.88996871,84394.0,84393.0,0.00088537]
[1744625114178,0.93816871,84394.0,84393.0,0.00088537]
[1744625114589,0.95270956,84394.0,84393.0,0.00088537]
[1744625114784,1.03704888,84394.0,84393.0,0.00088537]
[1744625115210,1.00260956,84394.0,84393.0,0.00088537]
[1744625115409,1.07267757,84394.0,84393.0,0.00088537]
[1744625115633,1.03823825,84394.0,84393.0,0.00088537]
[1744625115855,1.00160956,84394.0,84393.0,0.00088537]
[1744625116841,1.00360956,84394.0,84393.0,0.00088537]
[1744625117622,1.12433804,84394.0,84393.0,0.00088537]
[1744625117830,1.00360956,84394.0,84393.0,0.00088537]
[1744625123584,1.07467757,84394.0,84393.0,3.7e-07]
[1744625124627,1.07267757,84394.0,84393.0,3.7e-07]
[1744625124781,1.07667757,84394.0,84393.0,3.7e-07]
[1744625124985,1.00560956,84394.0,84393.0,3.7e-07]
[1744625128220,1.00560956,84394.0,84382.0,0.000422]
[1744625128221,0.35454085,84382.0,84351.0,0.0479]
[1744625128373,0.70932239,84382.0,84359.0,0.0004222]
[1744625128575,1.12582239,84382.0,84381.0,0.0020987]
[1744625128916,1.12682239,84382.0,84381.0,0.0020987]
[1744625129416,1.12882239,84382.0,84381.0,0.0020987]
[1744625129619,1.12782239,84382.0,84381.0,0.0020987]
[1744625129959,1.12582239,84382.0,84381.0,0.0020987]
[1744625130131,1.12982239,84382.0,84381.0,0.0020987]
[1744625130921,1.03472239,84382.0,84381.0,0.0020987]
[1744625131762,0.89588239,84382.0,84381.0,0.0020987]
[1744625131975,1.03472239,84382.0,84381.0,0.0020987]
[1744625132119,0.89588239,84382.0,84381.0,0.0020987]
[1744625132325,1.03472239,84382.0,84381.0,0.0020987]
[1744625133260,0.89588239,84382.0,84381.0,0.0020987]
[1744625133411,1.03472239,84382.0,84381.0,0.0020987]
[1744625133917,0.89588239,84382.0,84381.0,0.0020987]
[1744625134484,1.03472239,84382.0,84381.0,0.0020987]
[1744625138723,1.06954499,84382.0,84381.0,0.0020987]
[1744625138925,1.03472239,84382.0,84381.0,0.0020987]
[1744625144967,1.03468239,84382.0,84381.0,0.0020987]
[1744625152586,2.14384239,84382.0,84381.0,0.0020987]
[1744625162028,2.14984239,84382.0,84381.0,0.0030987]
[1744625170602,2.27057087,84382.0,84381.0,0.0030987]
[1744625170805,2.14984239,84382.0,84381.0,0.0030987]
[1744625171251,0.01454085,84371.0,84369.0,1.3e-06]
[1744625171410,0.54418585,84368.0,84359.0,0.0004222]
[1744625171628,0.66502739,84368.0,84367.0,0.00056074]
[1744625173659,0.66702739,84368.0,84367.0,0.00056074]
[1744625174403,0.66802739,84368.0,84367.0,0.00056074]
[1744625174825,0.74249451,84368.0,84367.0,0.00056074]
[1744625175178,0.7515555,84368.0,84367.0,0.00056074]
[1744625175677,1.09358838,84368.0,84367.0,0.00056074]
[1744625176533,1.23234838,84368.0,84367.0,0.00056074]
[1744625179892,0.73904753,84368.0,84367.0,0.04856074]
[1744625180112,0.75696599,84368.0,84367.0,0.09826074]
[1744625180337,1.09696599,84368.0,84367.0,0.09826074]
[1744625181493,1.09696599,84368.0,84367.0,0.11677692]
[1744625182355,1.09696599,84368.0,84367.0,0.10937045]
[1744625182560,1.09696599,84368.0,84367.0,0.09826074]
[1744625183125,1.09696599,84368.0,84367.0,0.11677692]
[1744625183788,1.21780753,84368.0,84367.0,0.06707692]
[1744625189989,1.21780753,84368.0,84367.0,0.01907692]
[1744625190335,1.21780753,84368.0,84367.0,0.00796721]
[1744625190762,1.21780753,84368.0,84367.0,0.00056074]
[1744625204508,1.07904753,84368.0,84367.0,0.00056074]
[1744625204836,1.21780753,84368.0,84367.0,0.00056074]
[1744625209997,1.23234838,84368.0,84367.0,0.00056074]
[1744625213208,1.23134838,84368.0,84367.0,0.00056074]
[1744625214265,1.23534838,84368.0,84367.0,0.00056074]
[1744625215652,1.09658838,84368.0,84367.0,0.00056074]
[1744625215872,1.23530838,84368.0,84367.0,0.00056074]
[1744625220361,0.35454085,84367.0,84366.0,4.4e-07]
[1744625220536,0.60282171,84367.0,84366.0,3.3e-07]
[1744625220767,0.6394504,84367.0,84366.0,3.3e-07]
[1744625221207,0.601381,84367.0,84366.0,3.3e-07]
[1744625221413,0.56838239,84367.0,84366.0,3.3e-07]
[1744625221769,0.57038239,84367.0,84366.0,3.3e-07]
[1744625221970,0.69111087,84367.0,84366.0,3.3e-07]
[1744625222286,0.56838239,84367.0,84366.0,3.3e-07]
[1744625222486,0.57238239,84367.0,84366.0,3.3e-07]
[1744625222784,0.57538239,84367.0,84366.0,3.3e-07]
[1744625223369,0.54422185,84352.0,84347.0,0.0004222]
[1744625223596,1.22028339,84352.0,84351.0,0.00213908]
[1744625226146,1.22028339,84352.0,84351.0,0.00313908]
[1744625237251,1.34101187,84352.0,84351.0,0.00313908]
[1744625237455,1.42501682,84352.0,84351.0,0.00313908]
[1744625237655,1.30428834,84352.0,84351.0,0.00313908]
[1744625238051,1.27008339,84352.0,84351.0,0.00313908]
[1744625239375,1.27308339,84352.0,84351.0,0.00213908]
[1744625239721,1.27808339,84352.0,84351.0,0.00313908]
[1744625242751,1.22828339,84352.0,84351.0,0.00313908]
[1744625244337,1.08956339,84352.0,84351.0,0.00313908]
[1744625244545,1.22824339,84352.0,84351.0,0.00313908]
[1744625253126,1.34897187,84352.0,84351.0,0.00313908]
[1744625253993,1.22824339,84352.0,84351.0,0.00313908]
[1744625259237,2.33784339,84352.0,84351.0,0.00313908]
[1744625262978,0.54423085,84348.0,84347.0,0.0004222]
[1744625263167,0.66507239,84348.0,84347.0,0.0004222]
[1744625264134,0.66807239,84348.0,84347.0,0.0004222]
[1744625264969,0.67207239,84348.0,84347.0,0.0004222]
[1744625266700,1.08857239,84348.0,84347.0,0.0004222]
[1744625268272,1.20930087,84348.0,84347.0,0.0004222]
[1744625268966,1.22721239,84348.0,84347.0,0.0004222]
[1744625270431,1.22721239,84348.0,84347.0,2e-07]
[1744625270432,1.47915092,84348.0,84347.0,2e-07]
[1744625270650,0.54425985,84335.0,84334.0,0.00740937]
[1744625270802,0.35454085,84334.0,84333.0,0.0004223]
[1744625271002,0.47538239,84334.0,84333.0,0.0004223]
[1744625271209,0.47538239,84334.0,84333.0,0.00088626]
[1744625271637,0.189748,84322.0,84317.0,0.0493222]